fUST/lending_fUST_20250403
["ID","MTS","AMOUNT","RATE_DAILY","PERIOD"]
[357068857,1743685849809,-500.0,0.00018356,2]
[357068858,1743685849818,-500.0,0.00018356,2]
[357068859,1743685849827,-500.0,0.00018356,2]
[357068860,1743685849837,-500.0,0.00018356,2]
[357068861,1743685849846,-3822.2,0.00018356,2]
[357068862,1743685849856,-500.0,0.00018356,2]
[357068863,1743685849867,-3989.98,0.00018356,2]
[357068864,1743685849877,-500.0,0.00018356,2]
[357068865,1743685849886,-500.0,0.00018356,2]
[357068866,1743685849896,-500.0,0.00018356,2]
[357068867,1743685849905,-1571.67,0.00018356,2]
[357068868,1743685849915,-3027.83,0.00018356,2]
[357068869,1743685849924,-500.0,0.00018356,2]
[357068870,1743685849933,-500.0,0.00018356,2]
[357068871,1743685849943,-1669.58,0.00018356,2]
[357068872,1743685849952,-9681.21,0.00018356,2]
[357068873,1743685849962,-741.21,0.00018356,2]
[357068874,1743685849971,-500.0,0.00018356,2]
[357068875,1743685849981,-500.0,0.00018356,2]
[357068876,1743685849990,-905.31,0.00018356,2]
[357068877,1743685849999,-1245.13,0.00018356,2]
[357068878,1743685850008,-500.0,0.00018356,2]
[357068879,1743685850017,-500.0,0.00018356,2]
[357068880,1743685850028,-500.0,0.00018356,2]
[357068881,1743685850037,-1913.75,0.00018356,2]
[357068882,1743685850046,-1180.96,0.00018356,2]
[357068883,1743685850055,-10433.57,0.00018356,2]
[357068884,1743685850065,-500.0,0.00018356,2]
[357068885,1743685850075,-3597.88,0.00018356,2]
[357068886,1743685850084,-578.17,0.00018356,2]
[357068887,1743685850094,-500.0,0.00018356,2]
[357068888,1743685850103,-689.69,0.00018356,2]
[357068889,1743685850113,-5960.85,0.00018356,2]
[357068890,1743685850123,-500.0,0.00018356,2]
[357068891,1743685850131,-3926.47,0.00018356,2]
[357068892,1743685850140,-500.0,0.00018356,2]
[357068893,1743685850149,-906.44,0.00018356,2]
[357068894,1743685850159,-500.0,0.00018356,2]
[357068895,1743685850168,-500.0,0.00018356,2]
[357068896,1743685850178,-500.0,0.00018356,2]
[357068897,1743685850187,-1588.14,0.00018356,2]
[357068898,1743685850196,-500.0,0.00018356,2]
[357068899,1743685850206,-500.0,0.00018356,2]
[357068900,1743685850215,-2561.68,0.00018356,2]
[357068901,1743685850225,-500.0,0.00018356,2]
[357068902,1743685850234,-500.0,0.00018356,2]
[357068903,1743685850243,-2829.31,0.00018356,2]
[357068904,1743685850252,-519.21102702,0.00018356,2]
[357068905,1743685850262,-500.0,0.00018356,2]
[357068906,1743685850271,-983.63,0.00018356,2]
[357068907,1743685850280,-500.0,0.00018356,2]
[357068908,1743685850289,-6035.54,0.00018356,2]
[357068909,1743685850298,-928.07,0.00018356,2]
[357068910,1743685850307,-45574.98,0.00018356,2]
[357068911,1743685850317,-500.0,0.00018356,2]
[357068912,1743685850326,-500.0,0.00018356,2]
[357068913,1743685850335,-1224.69,0.00018356,2]
[357068914,1743685850344,-588.98,0.00018356,2]
[357068915,1743685850354,-500.0,0.00018356,2]
[357068916,1743685850363,-500.0,0.00018356,2]
[357068917,1743685850375,-500.0,0.00018356,2]
[357068918,1743685850385,-1035.67,0.00018356,2]
[357068919,1743685850398,-2265.84,0.00018356,2]
[357068920,1743685850407,-1419.1,0.00018356,2]
[357068921,1743685850417,-2886.11,0.00018356,2]
[357068922,1743685850428,-500.0,0.00018356,2]
[357068923,1743685850437,-500.0,0.00018356,2]
[357068924,1743685850447,-500.0,0.00018356,2]
[357068925,1743685850456,-500.0,0.00018356,2]
[357068926,1743685850466,-540.92,0.00018356,2]
[357068927,1743685850475,-500.0,0.00018356,2]
[357068928,1743685850485,-500.0,0.00018356,2]
[357068929,1743685850494,-500.0,0.00018356,2]
[357068930,1743685850503,-151.0,0.00018519,2]
[357068931,1743685850513,-12458.93820146,0.0001852,2]
[357068932,1743685850522,-160.0,0.0001852,2]
[357068933,1743685850532,-160.0,0.0001852,2]
[357068934,1743685850541,-754.37708854,0.0001852,2]
[357068935,1743685850551,-419.04650234,0.0001852,2]
[357068936,1743685850560,-160.0,0.0001852,2]
[357068937,1743685850570,-207.4,0.00018557,2]
[357068938,1743685850579,-500.0,0.0001863,2]
[357068939,1743685850589,-209.545045,0.0001863,2]
[357068940,1743685850599,-500.0,0.0001863,2]
[357068941,1743685850608,-570.99,0.0001863,2]
[357068942,1743685850619,-235.78,0.0001863,2]
[357068943,1743685850629,-502.67,0.0001863,2]
[357068944,1743685850639,-500.0,0.0001863,2]
[357068945,1743685850648,-500.0,0.0001863,2]
[357068946,1743685850657,-653.73,0.0001863,2]
[357068947,1743685850667,-500.0,0.0001863,2]
[357068948,1743685850676,-500.0,0.0001863,2]
[357068949,1743685850764,-500.0,0.0001863,2]
[357068950,1743685850773,-500.0,0.0001863,2]
[357068951,1743685850783,-500.0,0.0001863,2]
[357068952,1743685850792,-151.0,0.0001863,2]
[357068953,1743685850801,-500.0,0.0001863,2]
[357068954,1743685850810,-500.0,0.0001863,2]
[357068955,1743685850820,-500.0,0.0001863,2]
[357068956,1743685850831,-500.0,0.0001863,2]
[357068957,1743685850841,-500.0,0.0001863,2]
[357068958,1743685850850,-500.0,0.0001863,2]
[357068959,1743685850859,-500.0,0.0001863,2]
[357068960,1743685850871,-500.0,0.0001863,2]
[357068961,1743685850880,-200.0,0.0001863,2]
[357068962,1743685850889,-500.0,0.0001863,2]
[357068963,1743685850898,-500.0,0.0001863,2]
[357068964,1743685850908,-500.0,0.0001863,2]
[357068965,1743685850918,-500.0,0.0001863,2]
[357068966,1743685850928,-500.0,0.0001863,2]
[357068967,1743685850938,-500.0,0.0001863,2]
[357068968,1743685850947,-500.0,0.0001863,2]
[357068969,1743685850957,-500.0,0.0001863,2]
[357068970,1743685850967,-500.0,0.0001863,2]
[357068971,1743685850977,-500.0,0.0001863,2]
[357068972,1743685850986,-500.0,0.0001863,2]
[357068973,1743685850996,-500.0,0.0001863,2]
[357068974,1743685851005,-500.0,0.0001863,2]
[357068975,1743685851015,-500.0,0.0001863,2]
[357068976,1743685851025,-500.0,0.0001863,2]
[357068977,1743685851034,-500.0,0.0001863,2]
[357068978,1743685851044,-500.0,0.0001863,2]
[357068979,1743685851053,-500.0,0.0001863,2]
[357068980,1743685851063,-1006.3,0.0001863,2]
[357068981,1743685851072,-500.0,0.0001863,2]
[357068982,1743685851082,-599.77,0.0001863,2]
[357068983,1743685851091,-2229.53,0.0001863,2]
[357068984,1743685851101,-500.0,0.0001863,2]
[357068985,1743685851111,-500.0,0.0001863,2]
[357068986,1743685851121,-500.0,0.0001863,2]
[357068987,1743685851131,-500.0,0.0001863,2]
[357068988,1743685851141,-500.0,0.0001863,2]
[357068989,1743685851150,-1797.17,0.0001863,2]
[357068990,1743685851160,-500.0,0.0001863,2]
[357068991,1743685851169,-623.03,0.0001863,2]
[357068992,1743685851179,-2251.16,0.0001863,2]
[357068993,1743685851189,-500.0,0.0001863,2]
[357068994,1743685851199,-500.0,0.0001863,2]
[357068995,1743685851208,-500.0,0.0001863,2]
[357068996,1743685851219,-500.0,0.0001863,2]
[357068997,1743685851228,-500.0,0.0001863,2]
[357068998,1743685851238,-500.0,0.0001863,2]
[357068999,1743685851248,-500.0,0.0001863,2]
[357069000,1743685851257,-500.0,0.0001863,2]
[357069001,1743685851267,-500.0,0.0001863,2]
[357069002,1743685851276,-201.120689,0.0001863,2]
[357069003,1743685851287,-500.0,0.0001863,2]
[357069004,1743685851296,-500.0,0.0001863,2]
[357069005,1743685851306,-151.0,0.0001863,2]
[357069006,1743685851315,-338.23622049,0.0001863,2]
[357069007,1743685851325,-500.0,0.0001863,2]
[357069008,1743685851334,-500.0,0.0001863,2]
[357069009,1743685851344,-2356.42,0.0001863,2]
[357069010,1743685851354,-500.0,0.0001863,2]
[357069011,1743685851363,-500.0,0.0001863,2]
[357069012,1743685851374,-720.75,0.0001863,2]
[357069013,1743685851383,-500.0,0.0001863,2]
[357069014,1743685851395,-500.0,0.0001863,2]
[357069015,1743685851406,-500.0,0.0001863,2]
[357069016,1743685851416,-701.56,0.0001863,2]
[357069017,1743685851425,-1260.21,0.0001863,2]
[357069018,1743685851435,-151.0,0.0001863,2]
[357069019,1743685851446,-500.0,0.0001863,2]
[357069020,1743685851456,-500.0,0.0001863,2]
[357069021,1743685851467,-500.0,0.0001863,2]
[357069022,1743685851476,-1259.19,0.0001863,2]
[357069023,1743685851486,-500.0,0.0001863,2]
[357069024,1743685851495,-1190.75,0.0001863,2]
[357069025,1743685851505,-500.0,0.0001863,2]
[357069026,1743685851514,-2327.12,0.0001863,2]
[357069027,1743685851523,-500.0,0.0001863,2]
[357069028,1743685851533,-628.26441565,0.0001863,2]
[357069029,1743685851543,-500.0,0.0001863,2]
[357069030,1743685851552,-500.0,0.0001863,2]
[357069031,1743685851562,-1205.43,0.0001863,2]
[357069032,1743685851571,-500.0,0.0001863,2]
[357069033,1743685851580,-500.0,0.0001863,2]
[357069034,1743685851589,-500.0,0.0001863,2]
[357069035,1743685851599,-500.0,0.0001863,2]
[357069036,1743685851608,-500.0,0.0001863,2]
[357069037,1743685851620,-3822.2,0.0001863,2]
[357069038,1743685851630,-500.0,0.0001863,2]
[357069039,1743685851640,-3989.98,0.0001863,2]
[357069040,1743685851649,-500.0,0.0001863,2]
[357069041,1743685851659,-500.0,0.0001863,2]
[357069042,1743685851669,-500.0,0.0001863,2]
[357069043,1743685851679,-1571.67,0.0001863,2]
[357069044,1743685851688,-3027.83,0.0001863,2]
[357069045,1743685851697,-500.0,0.0001863,2]
[357069046,1743685851706,-500.0,0.0001863,2]
[357069047,1743685851715,-1669.58,0.0001863,2]
[357069048,1743685851725,-9681.21,0.0001863,2]
[357069049,1743685851735,-741.21,0.0001863,2]
[357069050,1743685851744,-500.0,0.0001863,2]
[357069051,1743685851753,-151.0,0.0001863,2]
[357069052,1743685851763,-500.0,0.0001863,2]
[357069053,1743685851772,-905.31,0.0001863,2]
[357069054,1743685851782,-500.0,0.0001863,2]
[357069055,1743685851791,-1245.13,0.0001863,2]
[357069056,1743685851800,-633.91092363,0.0001863,2]
[357069057,1743685851810,-500.0,0.0001863,2]
[357069058,1743685851820,-1913.75,0.0001863,2]
[357069059,1743685851830,-1180.96,0.0001863,2]
[357069060,1743685851839,-10433.57,0.0001863,2]
[357069061,1743685851849,-500.0,0.0001863,2]
[357069062,1743685851858,-3597.88,0.0001863,2]
[357069063,1743685851869,-578.17,0.0001863,2]
[357069064,1743685851879,-279.02519531,0.0001863,2]
[357069065,1743685851888,-689.69,0.0001863,2]
[357069066,1743685851898,-5960.85,0.0001863,2]
[357069067,1743685851907,-500.0,0.0001863,2]
[357069068,1743685851916,-3926.47,0.0001863,2]
[357069069,1743685851925,-500.0,0.0001863,2]
[357069070,1743685851935,-906.44,0.0001863,2]
[357069071,1743685851944,-500.0,0.0001863,2]
[357069072,1743685851954,-500.0,0.0001863,2]
[357069073,1743685851963,-500.0,0.0001863,2]
[357069074,1743685851973,-1588.14,0.0001863,2]
[357069075,1743685851982,-500.0,0.0001863,2]
[357069076,1743685851992,-500.0,0.0001863,2]
[357069077,1743685852001,-2561.68,0.0001863,2]
[357069078,1743685852010,-224.28479824,0.0001863,2]
[357069079,1743685852019,-500.0,0.0001863,2]
[357069080,1743685852029,-2829.31,0.0001863,2]
[357069081,1743685852038,-500.0,0.0001863,2]
[357069082,1743685852047,-983.63,0.0001863,2]
[357069083,1743685852057,-500.0,0.0001863,2]
[357069084,1743685852066,-6035.54,0.0001863,2]
[357069085,1743685852076,-928.07,0.0001863,2]
[357069086,1743685852085,-45574.98,0.0001863,2]
[357069087,1743685852095,-500.0,0.0001863,2]
[357069088,1743685852105,-500.0,0.0001863,2]
[357069089,1743685852114,-1224.69,0.0001863,2]
[357069090,1743685852127,-588.98,0.0001863,2]
[357069091,1743685852137,-500.0,0.0001863,2]
[357069092,1743685852147,-500.0,0.0001863,2]
[357069093,1743685852156,-500.0,0.0001863,2]
[357069094,1743685852166,-1035.67,0.0001863,2]
[357069095,1743685852177,-2265.84,0.0001863,2]
[357069096,1743685852188,-1419.1,0.0001863,2]
[357069097,1743685852198,-2886.11,0.0001863,2]
[357069098,1743685852207,-500.0,0.0001863,2]
[357069099,1743685852218,-500.0,0.0001863,2]
[357069100,1743685852307,-500.0,0.0001863,2]
[357069101,1743685852318,-500.0,0.0001863,2]
[357069102,1743685852328,-540.92,0.0001863,2]
[357069103,1743685852337,-500.0,0.0001863,2]
[357069104,1743685852347,-500.0,0.0001863,2]
[357069105,1743685852356,-500.0,0.0001863,2]
[357069106,1743685852369,-8461.95358068,0.00018693,2]
[357069107,1743685852379,-500.0,0.00018904,2]
[357069108,1743685852389,-500.0,0.00018904,2]
[357069109,1743685852403,-570.99,0.00018904,2]
[357069110,1743685852413,-502.67,0.00018904,2]
[357069111,1743685852423,-500.0,0.00018904,2]
[357069112,1743685852434,-151.0,0.00018904,2]
[357069113,1743685852443,-653.73,0.00018904,2]
[357069114,1743685852453,-500.0,0.00018904,2]
[357069115,1743685852463,-500.0,0.00018904,2]
[357069116,1743685852472,-500.0,0.00018904,2]
[357069117,1743685852483,-500.0,0.00018904,2]
[357069118,1743685852492,-500.0,0.00018904,2]
[357069119,1743685852502,-500.0,0.00018904,2]
[357069120,1743685852512,-500.0,0.00018904,2]
[357069121,1743685852522,-500.0,0.00018904,2]
[357069122,1743685852531,-500.0,0.00018904,2]
[357069123,1743685852541,-500.0,0.00018904,2]
[357069124,1743685852551,-500.0,0.00018904,2]
[357069125,1743685852561,-500.0,0.00018904,2]
[357069126,1743685852571,-500.0,0.00018904,2]
[357069127,1743685852581,-500.0,0.00018904,2]
[357069128,1743685852591,-500.0,0.00018904,2]
[357069129,1743685852600,-500.0,0.00018904,2]
[357069130,1743685852610,-500.0,0.00018904,2]
[357069131,1743685852622,-500.0,0.00018904,2]
[357069132,1743685852631,-500.0,0.00018904,2]
[357069133,1743685852639,-1006.3,0.00018904,2]
[357069134,1743685852649,-500.0,0.00018904,2]
[357069135,1743685852658,-599.77,0.00018904,2]
[357069136,1743685852668,-2229.53,0.00018904,2]
[357069137,1743685852678,-500.0,0.00018904,2]
[357069138,1743685852687,-500.0,0.00018904,2]
[357069139,1743685852697,-500.0,0.00018904,2]
[357069140,1743685852706,-500.0,0.00018904,2]
[357069141,1743685852715,-500.0,0.00018904,2]
[357069142,1743685852725,-1797.17,0.00018904,2]
[357069143,1743685852734,-500.0,0.00018904,2]
[357069144,1743685852744,-2251.16,0.00018904,2]
[357069145,1743685852753,-500.0,0.00018904,2]
[357069146,1743685852763,-500.0,0.00018904,2]
[357069147,1743685852773,-500.0,0.00018904,2]
[357069148,1743685852784,-500.0,0.00018904,2]
[357069149,1743685852795,-500.0,0.00018904,2]
[357069150,1743685852805,-500.0,0.00018904,2]
[357069151,1743685852814,-500.0,0.00018904,2]
[357069152,1743685852824,-500.0,0.00018904,2]
[357069153,1743685852834,-379.9202219,0.00018904,2]
[357069154,1743685852843,-500.0,0.00018904,2]
[357069155,1743685852853,-500.0,0.00018904,2]
[357069156,1743685852863,-500.0,0.00018904,2]
[357069157,1743685852873,-500.0,0.00018904,2]
[357069158,1743685852883,-2356.42,0.00018904,2]
[357069159,1743685852893,-500.0,0.00018904,2]
[357069160,1743685852902,-500.0,0.00018904,2]
[357069161,1743685852912,-720.75,0.00018904,2]
[357069162,1743685852921,-500.0,0.00018904,2]
[357069163,1743685852931,-500.0,0.00018904,2]
[357069164,1743685852940,-500.0,0.00018904,2]
[357069165,1743685852950,-701.56,0.00018904,2]
[357069166,1743685852960,-1260.21,0.00018904,2]
[357069167,1743685852969,-151.0,0.00018904,2]
[357069168,1743685852979,-207.52058057,0.00018904,2]
[357069169,1743685852988,-500.0,0.00018904,2]
[357069170,1743685852998,-500.0,0.00018904,2]
[357069171,1743685853008,-1259.19,0.00018904,2]
[357069172,1743685853018,-500.0,0.00018904,2]
[357069173,1743685853027,-1190.75,0.00018904,2]
[357069174,1743685853037,-500.0,0.00018904,2]
[357069175,1743685853046,-2327.12,0.00018904,2]
[357069176,1743685853056,-500.0,0.00018904,2]
[357069177,1743685853065,-500.0,0.00018904,2]
[357069178,1743685853075,-500.0,0.00018904,2]
[357069179,1743685853085,-1205.43,0.00018904,2]
[357069180,1743685853095,-500.0,0.00018904,2]
[357069181,1743685853104,-500.0,0.00018904,2]
[357069182,1743685853113,-500.0,0.00018904,2]
[357069183,1743685853125,-500.0,0.00018904,2]
[357069184,1743685853135,-500.0,0.00018904,2]
[357069185,1743685853145,-3822.2,0.00018904,2]
[357069186,1743685853155,-500.0,0.00018904,2]
[357069187,1743685853164,-3989.98,0.00018904,2]
[357069188,1743685853173,-500.0,0.00018904,2]
[357069189,1743685853183,-500.0,0.00018904,2]
[357069190,1743685853193,-500.0,0.00018904,2]
[357069191,1743685853203,-1571.67,0.00018904,2]
[357069192,1743685853212,-3027.83,0.00018904,2]
[357069193,1743685853222,-500.0,0.00018904,2]
[357069194,1743685853232,-500.0,0.00018904,2]
[357069195,1743685853241,-1669.58,0.00018904,2]
[357069196,1743685853251,-9681.21,0.00018904,2]
[357069197,1743685853260,-741.21,0.00018904,2]
[357069198,1743685853269,-500.0,0.00018904,2]
[357069199,1743685853278,-232.4677,0.00018904,2]
[357069200,1743685853288,-500.0,0.00018904,2]
[357069201,1743685853297,-905.31,0.00018904,2]
[357069202,1743685853306,-500.0,0.00018904,2]
[357069203,1743685853315,-1245.13,0.00018904,2]
[357069204,1743685853325,-500.0,0.00018904,2]
[357069205,1743685853334,-1913.75,0.00018904,2]
[357069206,1743685853344,-1180.96,0.00018904,2]
[357069207,1743685853354,-10433.57,0.00018904,2]
[357069208,1743685853363,-500.0,0.00018904,2]
[357069209,1743685853374,-3597.88,0.00018904,2]
[357069210,1743685853383,-578.17,0.00018904,2]
[357069211,1743685853397,-689.69,0.00018904,2]
[357069212,1743685853407,-5960.85,0.00018904,2]
[357069213,1743685853417,-500.0,0.00018904,2]
[357069214,1743685853427,-3926.47,0.00018904,2]
[357069215,1743685853436,-500.0,0.00018904,2]
[357069216,1743685853446,-906.44,0.00018904,2]
[357069217,1743685853455,-500.0,0.00018904,2]
[357069218,1743685853465,-500.0,0.00018904,2]
[357069219,1743685853475,-500.0,0.00018904,2]
[357069220,1743685853484,-1588.14,0.00018904,2]
[357069221,1743685853493,-500.0,0.00018904,2]
[357069222,1743685853503,-500.0,0.00018904,2]
[357069223,1743685853512,-2561.68,0.00018904,2]
[357069224,1743685853521,-500.0,0.00018904,2]
[357069225,1743685853530,-2829.31,0.00018904,2]
[357069226,1743685853540,-500.0,0.00018904,2]
[357069227,1743685853550,-983.63,0.00018904,2]
[357069228,1743685853559,-599.27368092,0.00018904,2]
[357069229,1743685853570,-6035.54,0.00018904,2]
[357069230,1743685853580,-928.07,0.00018904,2]
[357069231,1743685853589,-45574.98,0.00018904,2]
[357069232,1743685853599,-500.0,0.00018904,2]
[357069233,1743685853608,-500.0,0.00018904,2]
[357069234,1743685853619,-588.98,0.00018904,2]
[357069235,1743685853629,-1224.69,0.00018904,2]
[357069236,1743685853638,-500.0,0.00018904,2]
[357069237,1743685853648,-500.0,0.00018904,2]
[357069238,1743685853659,-1035.67,0.00018904,2]
[357069239,1743685853740,-2265.84,0.00018904,2]
[357069240,1743685853749,-1419.1,0.00018904,2]
[357069241,1743685853758,-2886.11,0.00018904,2]
[357069242,1743685853768,-500.0,0.00018904,2]
[357069243,1743685853776,-500.0,0.00018904,2]
[357069244,1743685853785,-500.0,0.00018904,2]
[357069245,1743685853794,-500.0,0.00018904,2]
[357069246,1743685853803,-540.92,0.00018904,2]
[357069247,1743685853812,-500.0,0.00018904,2]
[357069248,1743685853822,-500.0,0.00018904,2]
[357069249,1743685853832,-8461.95358068,0.00019141,2]
[357069250,1743685853841,-297.14,0.00019178,2]
[357069251,1743685853850,-500.0,0.00019178,2]
[357069252,1743685853859,-570.99,0.00019178,2]
[357069253,1743685853870,-502.67,0.00019178,2]
[357069254,1743685853879,-500.0,0.00019178,2]
[357069255,1743685853888,-653.73,0.00019178,2]
[357069256,1743685853897,-268.0,0.00019178,2]
[357069257,1743685853907,-151.0,0.00019178,2]
[357069258,1743685853916,-500.0,0.00019178,2]
[357069259,1743685853925,-500.0,0.00019178,2]
[357069260,1743685853934,-500.0,0.00019178,2]
[357069261,1743685853943,-500.0,0.00019178,2]
[357069262,1743685853952,-500.0,0.00019178,2]
[357069263,1743685853962,-500.0,0.00019178,2]
[357069264,1743685853972,-500.0,0.00019178,2]
[357069265,1743685853981,-500.0,0.00019178,2]
[357069266,1743685853991,-500.0,0.00019178,2]
[357069267,1743685854000,-500.0,0.00019178,2]
[357069268,1743685854009,-500.0,0.00019178,2]
[357069269,1743685854018,-1006.3,0.00019178,2]
[357069270,1743685854027,-500.0,0.00019178,2]
[357069271,1743685854036,-599.77,0.00019178,2]
[357069272,1743685854046,-2229.53,0.00019178,2]
[357069273,1743685854055,-500.0,0.00019178,2]
[357069274,1743685854065,-500.0,0.00019178,2]
[357069275,1743685854074,-500.0,0.00019178,2]
[357069276,1743685854084,-500.0,0.00019178,2]
[357069277,1743685854093,-500.0,0.00019178,2]
[357069278,1743685854103,-1797.17,0.00019178,2]
[357069279,1743685854112,-500.0,0.00019178,2]
[357069280,1743685854122,-2251.16,0.00019178,2]
[357069281,1743685854131,-500.0,0.00019178,2]
[357069282,1743685854141,-500.0,0.00019178,2]
[357069283,1743685854150,-500.0,0.00019178,2]
[357069284,1743685854159,-500.0,0.00019178,2]
[357069285,1743685854168,-500.0,0.00019178,2]
[357069286,1743685854177,-500.0,0.00019178,2]
[357069287,1743685854187,-500.0,0.00019178,2]
[357069288,1743685854196,-201.120689,0.00019178,2]
[357069289,1743685854205,-500.0,0.00019178,2]
[357069290,1743685854215,-500.0,0.00019178,2]
[357069291,1743685854224,-151.0,0.00019178,2]
[357069292,1743685854234,-500.0,0.00019178,2]
[357069293,1743685854243,-2356.42,0.00019178,2]
[357069294,1743685854252,-500.0,0.00019178,2]
[357069295,1743685854262,-500.0,0.00019178,2]
[357069296,1743685854271,-720.75,0.00019178,2]
[357069297,1743685854281,-500.0,0.00019178,2]
[357069298,1743685854290,-500.0,0.00019178,2]
[357069299,1743685854299,-500.0,0.00019178,2]
[357069300,1743685854309,-701.56,0.00019178,2]
[357069301,1743685854318,-1260.21,0.00019178,2]
[357069302,1743685854327,-500.0,0.00019178,2]
[357069303,1743685854337,-500.0,0.00019178,2]
[357069304,1743685854346,-1259.19,0.00019178,2]
[357069305,1743685854356,-500.0,0.00019178,2]
[357069306,1743685854367,-1190.75,0.00019178,2]
[357069307,1743685854380,-500.0,0.00019178,2]
[357069308,1743685854389,-2327.12,0.00019178,2]
[357069309,1743685854402,-500.0,0.00019178,2]
[357069310,1743685854412,-500.0,0.00019178,2]
[357069311,1743685854422,-500.0,0.00019178,2]
[357069312,1743685854432,-1205.43,0.00019178,2]
[357069313,1743685854443,-500.0,0.00019178,2]
[357069314,1743685854453,-500.0,0.00019178,2]
[357069315,1743685854462,-500.0,0.00019178,2]
[357069316,1743685854472,-500.0,0.00019178,2]
[357069317,1743685854485,-500.0,0.00019178,2]
[357069318,1743685854494,-3822.2,0.00019178,2]
[357069319,1743685854505,-500.0,0.00019178,2]
[357069320,1743685854514,-3989.98,0.00019178,2]
[357069321,1743685854524,-508.42106177,0.00019178,2]
[357069322,1743685854534,-500.0,0.00019178,2]
[357069323,1743685854544,-500.0,0.00019178,2]
[357069324,1743685854554,-1571.67,0.00019178,2]
[357069325,1743685854563,-3027.83,0.00019178,2]
[357069326,1743685854574,-500.0,0.00019178,2]
[357069327,1743685854583,-500.0,0.00019178,2]
[357069328,1743685854592,-1669.58,0.00019178,2]
[357069329,1743685854601,-9681.21,0.00019178,2]
[357069330,1743685854610,-741.21,0.00019178,2]
[357069331,1743685854622,-500.0,0.00019178,2]
[357069332,1743685854632,-500.0,0.00019178,2]
[357069333,1743685854641,-905.31,0.00019178,2]
[357069334,1743685854651,-500.0,0.00019178,2]
[357069335,1743685854661,-1245.13,0.00019178,2]
[357069336,1743685854671,-500.0,0.00019178,2]
[357069337,1743685854680,-1913.75,0.00019178,2]
[357069338,1743685854690,-1180.96,0.00019178,2]
[357069339,1743685854700,-10433.57,0.00019178,2]
[357069340,1743685854709,-500.0,0.00019178,2]
[357069341,1743685854719,-3597.88,0.00019178,2]
[357069342,1743685854729,-578.17,0.00019178,2]
[357069343,1743685854739,-689.69,0.00019178,2]
[357069344,1743685854748,-5960.85,0.00019178,2]
[357069345,1743685854758,-500.0,0.00019178,2]
[357069346,1743685854768,-3926.47,0.00019178,2]
[357069347,1743685854777,-500.0,0.00019178,2]
[357069348,1743685854787,-906.44,0.00019178,2]
[357069349,1743685854796,-500.0,0.00019178,2]
[357069350,1743685854806,-500.0,0.00019178,2]
[357069351,1743685854815,-500.0,0.00019178,2]
[357069352,1743685854825,-1588.14,0.00019178,2]
[357069353,1743685854834,-500.0,0.00019178,2]
[357069354,1743685854843,-500.0,0.00019178,2]
[357069355,1743685854853,-2561.68,0.00019178,2]
[357069356,1743685854863,-500.0,0.00019178,2]